bitfinex/quotes_BTCUSD_20220307
["timestamp","ask_amount","ask_price","bid_price","bid_amount"]
[1646632185826,0.89615587,38119.0,38118.0,0.20413237]
[1646632186324,0.43677637,38119.0,38118.0,0.20413237]
[1646632187177,0.69415369,38119.0,38118.0,0.20413237]
[1646632187778,0.70015369,38119.0,38118.0,0.20413237]
[1646632188780,0.69039369,38119.0,38118.0,0.20413237]
[1646632188983,0.32311637,38119.0,38118.0,0.20413237]
[1646632189485,0.27081637,38119.0,38118.0,0.20413237]
[1646632189882,0.26481637,38119.0,38118.0,0.20413237]
[1646632192126,0.53219369,38119.0,38118.0,0.20413237]
[1646632193125,0.26481637,38119.0,38118.0,0.20413237]
[1646632193969,0.54895369,38119.0,38118.0,0.20413237]
[1646632194173,0.53919369,38119.0,38118.0,0.20413237]
[1646632194371,0.54895369,38119.0,38118.0,0.20413237]
[1646632194971,0.26481637,38119.0,38118.0,0.20413237]
[1646632195770,0.22181637,38119.0,38118.0,0.20413237]
[1646632196574,0.107,38119.0,38118.0,0.20413237]
[1646632197172,0.1,38119.0,38118.0,0.20413237]
[1646632198036,0.31391287,38119.0,38118.0,0.20413237]
[1646632198637,0.1,38119.0,38118.0,0.20413237]
[1646632199438,0.31391413,38119.0,38118.0,0.20413237]
[1646632199639,0.1,38119.0,38118.0,0.20413237]
[1646632200341,0.1,38119.0,38118.0,0.59558437]
[1646632200342,0.21390727,38119.0,38118.0,0.59558437]
[1646632200541,0.21390727,38120.0,38118.0,0.59558437]
[1646632200740,0.21390727,38120.0,38119.0,0.391452]
[1646632201139,0.21390727,38120.0,38118.0,0.20413237]
[1646632203272,0.21390727,38120.0,38119.0,0.391452]
[1646632203472,0.21390727,38120.0,38118.0,0.20413237]
[1646632203873,0.21690727,38120.0,38118.0,0.20413237]
[1646632204483,0.31690727,38120.0,38118.0,0.20413237]
[1646632204677,0.37037732,38120.0,38118.0,0.20413237]
[1646632204874,0.1,38119.0,38118.0,0.20413237]
[1646632205330,0.10976,38119.0,38118.0,0.20413237]
[1646632205526,0.37713732,38119.0,38118.0,0.20406558]
[1646632206022,0.38213732,38119.0,38118.0,0.20406558]
[1646632206225,0.52096506,38119.0,38118.0,0.20406558]
[1646632206626,0.82096506,38119.0,38118.0,0.20406558]
[1646632206825,0.38213732,38119.0,38118.0,0.20406558]
[1646632207025,0.37713732,38119.0,38118.0,0.20406558]
[1646632209375,0.36737732,38119.0,38118.0,0.20406558]
[1646632209571,0.1,38119.0,38118.0,0.20406558]
[1646632210774,0.21481637,38119.0,38118.0,0.20406558]
[1646632211174,0.1,38119.0,38118.0,0.20406558]
[1646632211575,0.21481637,38119.0,38118.0,0.20406558]
[1646632211777,0.48719369,38119.0,38118.0,0.20406558]
[1646632211977,0.105,38119.0,38118.0,0.18137503]
[1646632212826,0.21981637,38119.0,38118.0,0.18137503]
[1646632213030,0.1,38119.0,38118.0,0.18137503]
[1646632213826,0.21481637,38119.0,38118.0,0.18137503]
[1646632214525,0.21469788,38119.0,38118.0,0.18137503]
[1646632214725,0.11481637,38119.0,38118.0,0.18137503]
[1646632215127,0.22457637,38119.0,38118.0,0.18137503]
[1646632215426,0.21481637,38119.0,38118.0,0.18137503]
[1646632216475,0.49195369,38119.0,38118.0,0.18137503]
[1646632216675,0.79195369,38119.0,38118.0,0.18137503]
[1646632217078,0.22457637,38119.0,38118.0,0.18137503]
[1646632217277,0.49199251,38119.0,38118.0,0.18137503]
[1646632217576,0.22457637,38119.0,38118.0,0.18137503]
[1646632217775,0.22857637,38119.0,38118.0,0.18137503]
[1646632217976,0.49600009,38119.0,38118.0,0.18137503]
[1646632218678,0.22857637,38119.0,38118.0,0.18137503]
[1646632219076,0.22457637,38119.0,38118.0,0.18137503]
[1646632220433,0.21481637,38119.0,38118.0,0.18137503]
[1646632220632,0.48225855,38119.0,38118.0,0.18137503]
[1646632222738,0.36744218,38119.0,38118.0,0.18137503]
[1646632224184,0.1,38119.0,38118.0,0.18137503]
[1646632224979,0.36744218,38119.0,38118.0,0.18137503]
[1646632226179,0.1,38119.0,38118.0,0.18137503]
[1646632226381,0.36744452,38119.0,38118.0,0.18137503]
[1646632227723,0.1,38119.0,38118.0,0.18137503]
[1646632228527,0.36744452,38119.0,38118.0,0.18137503]
[1646632232891,0.06873467,38133.0,38121.0,1.2]
[1646632233094,0.12389805,38132.0,38124.0,0.391452]
[1646632233292,0.30031153,38141.0,38132.0,0.391452]
[1646632233494,0.02673869,38140.0,38134.0,0.391452]
[1646632233693,0.1,38135.0,38134.0,0.391452]
[1646632233890,0.30031153,38141.0,38134.0,1.15517336]
[1646632234090,0.30031153,38141.0,38138.0,0.391452]
[1646632234290,0.30031153,38141.0,38140.0,0.391452]
[1646632234490,0.30031153,38141.0,38140.0,0.743752]
[1646632234691,0.30031153,38141.0,38140.0,0.843752]
[1646632234692,0.00019991,38141.0,38140.0,0.843752]
[1646632234897,0.00019991,38141.0,38140.0,0.870142]
[1646632235328,0.00019991,38141.0,38140.0,0.920152]
[1646632235536,0.1011,38153.0,38140.0,0.920152]
[1646632235732,0.1011,38153.0,38148.0,0.19525097]
[1646632235929,0.10189938,38153.0,38149.0,0.691452]
[1646632236129,0.10189938,38153.0,38148.0,0.46456533]
[1646632236334,0.10189938,38153.0,38150.0,0.391452]
[1646632236529,0.10189938,38153.0,38149.0,0.3]
[1646632236730,0.1011,38153.0,38149.0,0.391452]
[1646632236931,0.1011,38153.0,38149.0,0.3]
[1646632237130,0.10129988,38153.0,38149.0,0.3]
[1646632237733,0.10129988,38153.0,38150.0,0.391452]
[1646632237931,0.1011,38153.0,38150.0,0.391452]
[1646632238135,0.10129988,38153.0,38150.0,0.391452]
[1646632238837,0.10129988,38153.0,38149.0,0.691452]
[1646632239078,0.10129988,38153.0,38149.0,0.391452]
[1646632239380,0.10129988,38153.0,38149.0,0.691452]
[1646632240480,0.0011,38153.0,38151.0,0.05001]
[1646632240681,0.00129922,38153.0,38152.0,0.743752]
[1646632241079,0.00129922,38153.0,38152.0,0.843752]
[1646632241483,0.00129922,38153.0,38152.0,0.918772]
[1646632241680,0.0011,38153.0,38152.0,0.918772]
[1646632242181,0.0011,38153.0,38152.0,0.945162]
[1646632244140,0.0011,38153.0,38152.0,0.918772]
[1646632246241,0.0011,38153.0,38152.0,0.12732]
[1646632246488,0.0011,38153.0,38152.0,0.07502]
[1646632247089,0.0011,38153.0,38152.0,0.07517892]
[1646632247490,0.1011,38153.0,38152.0,0.07517892]
[1646632247892,0.1041,38153.0,38152.0,0.07517892]
[1646632249894,0.1061,38153.0,38152.0,0.07517892]
[1646632251226,0.1011,38153.0,38152.0,0.07517892]
[1646632252027,0.89242,38153.0,38152.0,0.07517892]
[1646632253226,0.88742,38153.0,38152.0,0.07517892]
[1646632253424,0.88742,38153.0,38152.0,0.46663092]
[1646632253626,0.88742,38153.0,38152.0,0.07517892]
[1646632254080,0.88742,38153.0,38152.0,0.46663092]
[1646632254681,0.88742,38153.0,38152.0,0.07517892]
[1646632254881,0.88742,38153.0,38152.0,0.46663092]
[1646632255080,0.88742,38153.0,38152.0,0.07517892]
[1646632255280,0.88742,38153.0,38152.0,0.46663092]
[1646632255881,0.88842,38153.0,38152.0,0.46663092]
[1646632256482,0.78842,38153.0,38152.0,0.39161092]
[1646632256680,0.78842,38153.0,38152.0,0.46654496]
[1646632257184,0.78742,38153.0,38152.0,0.46654496]
[1646632259941,0.78842,38153.0,38152.0,0.46654496]
[1646632260947,0.9511596,38153.0,38152.0,0.46654496]
[1646632261147,0.9501596,38153.0,38152.0,0.46654496]
[1646632261346,0.78742,38153.0,38152.0,0.46654496]
[1646632261578,0.78742,38153.0,38152.0,0.07509296]
[1646632261975,0.78842,38153.0,38152.0,0.07509296]
[1646632262376,0.97036356,38153.0,38152.0,0.07509296]
[1646632263176,1.11936356,38153.0,38152.0,0.07509296]
[1646632263378,1.12912356,38153.0,38152.0,0.07509296]
[1646632264176,1.18442356,38153.0,38152.0,0.07509296]
[1646632264377,1.3232513,38153.0,38152.0,0.07509296]
[1646632264981,1.18442356,38153.0,38152.0,0.07509296]
[1646632265229,1.18142356,38153.0,38152.0,0.07509296]
[1646632266231,1.17166356,38153.0,38152.0,0.07509296]
[1646632266431,1.18142356,38153.0,38152.0,0.07509296]
[1646632266836,1.17166356,38153.0,38152.0,0.07509296]
[1646632267034,0.98972,38153.0,38152.0,0.07509296]
[1646632268636,0.93742,38153.0,38152.0,0.07509296]
[1646632272481,0.937,38153.0,38152.0,0.07509296]
[1646632273927,0.94676,38153.0,38152.0,0.07509296]
[1646632275930,0.95176,38153.0,38152.0,0.07509296]
[1646632277177,0.94676,38153.0,38152.0,0.07509296]
[1646632277578,0.94676,38153.0,38143.0,0.36625179]
[1646632277777,0.937,38153.0,38152.0,0.07409296]
[1646632278082,0.84676,38153.0,38152.0,0.07409296]
[1646632278279,0.94676,38153.0,38152.0,0.07409296]
[1646632278781,0.937,38153.0,38152.0,0.07409296]
[1646632279179,0.94676,38153.0,38152.0,0.07409296]
[1646632280081,0.95076,38153.0,38152.0,0.07409296]
[1646632280328,1.13841229,38153.0,38152.0,0.07409296]
[1646632281226,1.13441229,38153.0,38152.0,0.07409296]
[1646632281425,0.94676,38153.0,38152.0,0.07409296]
[1646632282426,1.14449966,38153.0,38152.0,0.07409296]
[1646632282826,1.14449966,38153.0,38152.0,0.07423202]
[1646632286078,1.14949966,38153.0,38152.0,0.07423202]
[1646632287180,0.94676,38153.0,38152.0,0.07423202]
[1646632287835,0.937,38153.0,38152.0,0.07423202]
[1646632288035,0.94676,38153.0,38152.0,0.07423202]
[1646632288637,0.937,38153.0,38152.0,0.07423202]
[1646632289039,0.94676,38153.0,38152.0,0.07423202]
[1646632290739,0.937,38153.0,38152.0,0.07423202]
[1646632299478,0.837,38153.0,38152.0,0.07423202]
[1646632300076,0.837,38153.0,38152.0,0.07412133]
[1646632300982,0.78742,38153.0,38152.0,0.76557333]
[1646632301180,0.78742,38153.0,38152.0,0.55618333]
[1646632302580,0.78742,38153.0,38152.0,0.46557333]
[1646632303245,0.78742,38153.0,38152.0,0.76557333]
[1646632304647,0.78742,38153.0,38152.0,0.46557333]
[1646632304847,0.78742,38153.0,38152.0,0.07412133]
[1646632305749,0.78742,38153.0,38152.0,0.12300733]
[1646632307179,0.78742,38153.0,38152.0,0.51445933]
[1646632307582,0.78742,38153.0,38152.0,0.12300733]
[1646632307983,0.78942,38153.0,38152.0,0.51445933]
[1646632308182,0.78934267,38153.0,38152.0,0.12300733]
[1646632309281,0.78734267,38153.0,38152.0,0.12300733]
[1646632311224,0.78734267,38153.0,38152.0,0.51445933]
[1646632312424,0.78734267,38153.0,38152.0,0.12300733]
[1646632312626,0.78734267,38153.0,38152.0,0.51445933]
[1646632313326,0.78734267,38153.0,38152.0,0.81445933]
[1646632314780,0.78734267,38153.0,38152.0,0.51445933]
[1646632315179,0.98724267,38153.0,38152.0,0.84084933]
[1646632315380,0.41697956,38153.0,38152.0,0.84084933]
[1646632315780,0.41697956,38153.0,38152.0,0.81445933]
[1646632316180,0.41897956,38153.0,38152.0,0.51445933]
[1646632317281,0.4120913,38153.0,38152.0,0.51445933]
[1646632318127,0.4150913,38153.0,38152.0,0.51445933]
[1646632318327,0.4150913,38153.0,38152.0,0.81445933]
[1646632319027,0.4150913,38153.0,38152.0,0.51445933]
[1646632319428,0.4120913,38153.0,38152.0,0.51445933]
[1646632319630,0.4120913,38153.0,38152.0,0.12300733]
[1646632320228,0.4140913,38153.0,38152.0,0.12300733]
[1646632321481,0.4120913,38153.0,38152.0,0.12300733]
[1646632322084,0.4140913,38153.0,38152.0,0.12300733]
[1646632323485,0.4120913,38153.0,38152.0,0.12300733]
[1646632324085,0.4140913,38153.0,38152.0,0.12300733]
[1646632325428,0.4120913,38153.0,38152.0,0.12300733]
[1646632325629,0.4120913,38153.0,38152.0,0.51445933]
[1646632325831,0.4120913,38153.0,38152.0,0.12300733]
[1646632326632,0.4120913,38153.0,38152.0,0.51445933]
[1646632329786,0.4120913,38153.0,38152.0,0.81445933]
[1646632330585,0.4120913,38153.0,38152.0,0.51445933]
[1646632332087,0.4140913,38153.0,38152.0,0.51445933]
[1646632333027,0.4140913,38153.0,38152.0,0.61445933]
[1646632333429,0.4120913,38153.0,38152.0,0.61445933]
[1646632334230,0.4130913,38153.0,38152.0,0.61445933]
[1646632335331,0.4130913,38153.0,38152.0,0.22300733]
[1646632335531,0.4120913,38153.0,38152.0,0.61445933]
[1646632336230,0.4150913,38153.0,38152.0,0.61445933]
[1646632337485,0.4120913,38153.0,38152.0,0.61445933]
[1646632337689,0.4120913,38153.0,38152.0,0.91445933]
[1646632338082,0.4120913,38153.0,38152.0,0.61445933]
[1646632341231,0.4120913,38153.0,38152.0,0.61438908]
[1646632342934,0.4120913,38153.0,38152.0,0.12293708]
[1646632343135,0.4718513,38153.0,38152.0,0.12293708]
[1646632343335,0.5241513,38153.0,38152.0,0.12293708]
[1646632343989,0.66297904,38153.0,38152.0,0.12293708]
[1646632344786,0.76297904,38153.0,38152.0,0.12293708]
[1646632345788,0.91297904,38153.0,38152.0,3.708e-05]
[1646632346189,0.91797904,38153.0,38152.0,3.708e-05]
[1646632346390,0.89463686,38153.0,38152.0,3.708e-05]
[1646632346796,1.32203429,38153.0,38152.0,3.708e-05]
[1646632346993,0.99463686,38153.0,38152.0,3.708e-05]
[1646632347393,1.20821907,38153.0,38152.0,0.00014419]
[1646632347592,1.20321907,38153.0,38152.0,0.00014419]
[1646632347849,1.10321907,38153.0,38152.0,0.00014419]
[1646632350149,1.10821907,38153.0,38152.0,0.00014419]
[1646632351587,1.20321907,38153.0,38152.0,0.00014419]
[1646632351789,1.26882407,38153.0,38152.0,0.00014419]
[1646632352191,1.27282407,38153.0,38152.0,0.00014419]
[1646632353188,1.40196888,38153.0,38152.0,0.00014419]
[1646632353494,1.39796888,38153.0,38152.0,0.00014419]
[1646632353689,1.49796888,38153.0,38152.0,0.00014419]
[1646632353891,0.15781361,38141.0,38133.0,0.3]
[1646632354093,0.4218513,38140.0,38133.0,0.24143139]
[1646632354289,0.00976,38136.0,38131.0,0.1512]
[1646632354490,0.0523,38139.0,38137.0,0.22928]
[1646632354690,0.56067904,38138.0,38137.0,0.22928]
[1646632354890,0.5896596,38138.0,38137.0,0.22928]
[1646632355090,0.6896596,38138.0,38137.0,0.22928]
[1646632356154,0.6936596,38138.0,38137.0,0.22928]
[1646632357555,0.6896596,38138.0,38137.0,0.22928]
[1646632360587,0.6425718,38138.0,38137.0,0.22928]
[1646632362190,0.6465718,38138.0,38137.0,0.22937498]
[1646632363336,0.6565718,38138.0,38137.0,0.22937498]
[1646632363532,0.6525718,38138.0,38137.0,0.22937498]
[1646632363933,0.6521518,38138.0,38137.0,0.22937498]
[1646632368187,0.6561518,38138.0,38137.0,0.22937498]
[1646632368591,0.7560518,38138.0,38137.0,0.22076328]
[1646632368788,1.01115582,38138.0,38122.0,0.3]
[1646632368991,1.01115582,38138.0,38121.0,0.04674452]
[1646632368992,0.15,38132.0,38121.0,0.04674452]
[1646632369186,0.1,38124.0,38121.0,0.04674452]
[1646632369486,0.23882774,38122.0,38121.0,0.04674452]
[1646632369687,0.66026104,38122.0,38121.0,0.03363452]
[1646632370933,0.5214333,38122.0,38121.0,0.03363452]
[1646632371937,0.5120913,38122.0,38121.0,0.03363452]
[1646632375091,0.5220913,38122.0,38121.0,0.03363452]
[1646632376296,0.5270913,38122.0,38121.0,0.03363452]
[1646632376992,0.5364333,38122.0,38121.0,0.03363452]
[1646632377196,0.5364333,38122.0,38121.0,0.03374224]
[1646632377395,0.5314333,38122.0,38121.0,0.03374224]
[1646632377594,0.5220913,38122.0,38121.0,0.03374224]
[1646632378041,0.5314333,38122.0,38121.0,0.03374224]
[1646632378240,0.5364333,38122.0,38121.0,0.03374224]
[1646632379340,0.5270913,38122.0,38121.0,0.03374224]
[1646632379539,0.5220913,38122.0,38121.0,0.03374224]
[1646632379739,0.5314333,38122.0,38121.0,0.03374224]
[1646632379940,0.5220913,38122.0,38121.0,0.03374224]
[1646632380539,0.5314333,38122.0,38121.0,0.03374224]
[1646632382204,0.5354333,38122.0,38121.0,0.03374224]
[1646632383503,0.5314333,38122.0,38121.0,0.03374224]
[1646632384303,0.5364333,38122.0,38121.0,0.03374224]
[1646632384504,0.25207609,38126.0,38125.0,0.03432002]
[1646632384703,0.39090383,38126.0,38125.0,0.03432002]
[1646632384903,1.96464383,38126.0,38125.0,0.03432002]
[1646632385103,2.06464383,38126.0,38125.0,0.03432002]
[1646632385342,1.86486774,38126.0,38125.0,0.03432002]
[1646632385539,1.81256774,38126.0,38125.0,0.03432002]
[1646632388238,1.81756774,38126.0,38125.0,0.03432002]
[1646632390093,1.81256774,38126.0,38125.0,0.03432002]
[1646632392397,1.81656774,38126.0,38125.0,0.03442724]
[1646632392840,1.91646774,38126.0,38125.0,0.03442724]
[1646632393640,1.91246774,38126.0,38125.0,0.03442724]
[1646632394240,1.91646774,38126.0,38125.0,0.03442724]
[1646632395741,1.91246774,38126.0,38125.0,0.03442724]
[1646632396343,1.91746774,38126.0,38125.0,0.03442724]
[1646632397596,1.91246774,38126.0,38125.0,0.03442724]
[1646632398197,1.96476774,38126.0,38125.0,0.03442724]
[1646632398398,1.96876774,38126.0,38125.0,0.03442724]
[1646632399402,2.06866774,38126.0,38125.0,0.03442724]
[1646632399603,2.06466774,38126.0,38125.0,0.03442724]
[1646632399801,2.03745594,38126.0,38125.0,0.03442724]
[1646632400240,2.04145594,38126.0,38125.0,0.03442724]
[1646632402147,2.03745594,38126.0,38125.0,0.03442724]
[1646632402345,2.24145594,38126.0,38125.0,0.03442724]
[1646632402544,2.6154741,38126.0,38125.0,0.03442724]
[1646632402945,2.27166644,38126.0,38125.0,0.03442724]
[1646632403546,2.26766644,38126.0,38125.0,0.03442724]
[1646632403989,2.36766644,38126.0,38125.0,0.03442724]
[1646632404389,2.37166644,38126.0,38125.0,0.03442724]
[1646632404791,2.37166644,38126.0,38125.0,0.03431942]
[1646632405591,2.36766644,38126.0,38125.0,0.03431942]
[1646632405992,2.36766644,38126.0,38125.0,0.01667042]
[1646632406394,0.845,38125.0,38121.0,0.03363452]
[1646632406591,0.11164232,38122.0,38121.0,0.03363452]
[1646632406796,1.87505503,38122.0,38121.0,0.03363452]
[1646632406992,1.97495503,38122.0,38121.0,0.03363452]
[1646632407592,1.87495503,38122.0,38121.0,0.03363452]
[1646632408245,1.40081232,38122.0,38121.0,0.03363452]
[1646632408646,1.50081232,38122.0,38121.0,0.03363452]
[1646632408845,1.54006182,38122.0,38121.0,0.03363452]
[1646632409647,1.91430453,38122.0,38121.0,0.03363452]
[1646632409846,1.91419507,38122.0,38121.0,0.03363452]
[1646632410446,2.01909507,38122.0,38121.0,0.03363452]
[1646632410646,1.64485236,38122.0,38121.0,0.03363452]
[1646632411147,2.01909507,38122.0,38121.0,0.03363452]
[1646632411509,1.64485236,38122.0,38121.0,0.03363452]
[1646632411699,1.63985236,38122.0,38121.0,0.03363452]
[1646632412099,1.53995236,38122.0,38121.0,0.03363452]
[1646632412500,1.63985236,38122.0,38121.0,0.03373348]
[1646632412704,1.53985236,38122.0,38121.0,0.03373348]
[1646632413501,1.20714379,38122.0,38121.0,0.03373348]
[1646632413700,1.52786549,38122.0,38121.0,0.03373348]
[1646632413900,1.52786394,38122.0,38121.0,0.03373348]
[1646632414100,1.20714069,38122.0,38121.0,0.03373348]
[1646632414301,1.10724069,38122.0,38121.0,0.03373348]
[1646632414501,1.05494069,38122.0,38121.0,0.03373348]
[1646632414901,1.06494069,38122.0,38121.0,0.03373348]
[1646632415742,1.06494069,38122.0,38121.0,0.02873348]
[1646632417448,1.01505015,38122.0,38121.0,0.02873348]
[1646632421195,1.31505015,38122.0,38121.0,0.02873348]
[1646632422394,1.37005015,38122.0,38121.0,0.02873348]
[1646632422847,1.67402256,38122.0,38121.0,0.02873348]
[1646632423346,1.29977985,38122.0,38121.0,0.02873348]
[1646632423546,1.29477985,38122.0,38121.0,0.02873348]
[1646632424148,1.28977985,38122.0,38121.0,0.02873348]
[1646632426350,1.29377985,38122.0,38121.0,0.02873348]
[1646632426592,1.34607985,38122.0,38121.0,0.02873348]
[1646632427693,1.34207985,38122.0,38121.0,0.02873348]
[1646632427896,1.43299774,38122.0,38121.0,0.02873348]
[1646632429097,1.33084218,38122.0,38121.0,0.02873348]
[1646632429297,1.65154138,38122.0,38121.0,0.02873348]
[1646632429696,1.33084218,38122.0,38121.0,0.02873348]
[1646632429898,1.03084218,38122.0,38121.0,0.02873348]
[1646632431244,1.13074218,38122.0,38121.0,0.02873348]
[1646632431642,1.43074218,38122.0,38121.0,0.02873348]
[1646632432244,1.13074218,38122.0,38121.0,0.02873348]
[1646632434300,1.07844218,38122.0,38121.0,0.02873348]
[1646632434498,0.97854218,38122.0,38121.0,0.02873348]
[1646632436602,0.98254218,38122.0,38121.0,0.02873348]
[1646632437002,0.97994218,38122.0,38121.0,0.02873348]
[1646632437604,0.97594218,38122.0,38121.0,0.02873348]
[1646632438342,0.97994218,38122.0,38121.0,0.02873348]
[1646632439746,0.97594218,38122.0,38121.0,0.02873348]
[1646632440749,1.27594218,38122.0,38121.0,0.02873348]
[1646632442298,1.38776884,38122.0,38121.0,0.02873348]
[1646632442497,1.36176884,38122.0,38121.0,0.02873348]
[1646632442697,1.34936884,38122.0,38121.0,0.02873348]
[1646632443703,1.34536884,38122.0,38121.0,0.02873348]
[1646632444200,1.39536884,38122.0,38121.0,0.02873348]
[1646632446441,1.39936884,38122.0,38121.0,0.02873348]
[1646632447741,1.39536884,38122.0,38121.0,0.02873348]
[1646632448444,1.39836884,38122.0,38121.0,0.02873348]
[1646632448643,1.04606884,38122.0,38121.0,0.02873348]
[1646632448852,1.36097608,38122.0,38121.0,0.02873348]
[1646632449296,1.03916449,38122.0,38121.0,0.02873348]
[1646632449496,1.36100702,38122.0,38121.0,0.02873348]
[1646632449696,1.35800702,38122.0,38121.0,0.02873348]
[1646632449896,1.02904394,38122.0,38121.0,0.02873348]
[1646632450499,1.03404394,38122.0,38121.0,0.02873348]
[1646632451798,1.02904394,38122.0,38121.0,0.02873348]
[1646632452198,1.35800656,38122.0,38121.0,0.02873348]
[1646632452498,1.36300656,38122.0,38121.0,0.02873348]
[1646632453344,0.98854218,38122.0,38121.0,0.02873348]
[1646632453747,0.98354218,38122.0,38121.0,0.02873348]
[1646632456902,1.30449148,38122.0,38121.0,0.02873348]
[1646632457299,0.98354218,38122.0,38121.0,0.02873348]
[1646632458501,0.98854218,38122.0,38121.0,0.02873348]
[1646632459311,1.3094953,38122.0,38121.0,0.02873348]
[1646632459506,0.98854218,38122.0,38121.0,0.02873348]
[1646632460361,0.98354218,38122.0,38121.0,0.02873348]
[1646632460561,0.98754218,38122.0,38121.0,0.02873348]
[1646632460959,0.9461533,38122.0,38121.0,0.02873348]
[1646632461161,0.93754218,38122.0,38121.0,0.02873348]
[1646632461559,1.25848515,38122.0,38121.0,0.02873348]
[1646632461763,1.25448515,38122.0,38121.0,0.02873348]
[1646632462261,1.30448515,38122.0,38121.0,0.02873348]
[1646632462460,1.30848515,38122.0,38121.0,0.02873348]
[1646632463062,0.98754218,38122.0,38121.0,0.02873348]
[1646632463864,0.98354218,38122.0,38121.0,0.02873348]
[1646632464299,1.30448754,38122.0,38121.0,0.02873348]
[1646632464695,0.98354218,38122.0,38121.0,0.02873348]
[1646632466497,0.99054218,38122.0,38121.0,0.02873348]
[1646632467849,0.98354218,38122.0,38121.0,0.02873348]
[1646632468451,0.99054218,38122.0,38121.0,0.02873348]
[1646632469755,0.98354218,38122.0,38121.0,0.02873348]
[1646632470056,1.36998393,38122.0,38121.0,0.02873348]
[1646632470557,0.55,38121.0,38117.0,0.0001994]
[1646632470757,0.42450551,38118.0,38117.0,0.0001994]
[1646632470954,1.36367551,38118.0,38115.0,0.78285755]
[1646632471156,0.2236622,38117.0,38116.0,0.00019939]
[1646632471356,0.9971762,38117.0,38116.0,0.00019939]
[1646632471803,1.23600394,38117.0,38116.0,0.00019939]
[1646632472307,1.23600394,38117.0,38115.0,0.78285755]
[1646632472602,0.23882774,38116.0,38115.0,0.78305696]
[1646632472802,1.12799774,38116.0,38115.0,0.78305696]
[1646632473501,1.12799774,38116.0,38115.0,0.78285755]
[1646632473901,0.98917,38116.0,38115.0,0.78285755]
[1646632474501,0.99417,38116.0,38115.0,0.78285755]
[1646632475848,0.98917,38116.0,38115.0,0.78285755]
[1646632476949,0.98917,38116.0,38115.0,0.7829733]
[1646632477150,1.12799774,38116.0,38115.0,0.7829733]
[1646632477350,0.98917,38116.0,38115.0,0.7829733]
[1646632477560,0.93687,38116.0,38115.0,0.7829733]
[1646632478554,0.94287,38116.0,38115.0,0.7829733]
[1646632479806,0.36596655,38116.0,38115.0,0.7829733]
[1646632480209,0.46596655,38116.0,38115.0,0.7829733]
[1646632480607,0.47096655,38116.0,38115.0,0.7829733]
[1646632480807,0.37096655,38116.0,38115.0,0.7829733]
[1646632481008,0.47096655,38116.0,38115.0,0.7829733]
[1646632481207,0.52096655,38116.0,38115.0,0.7829733]
[1646632481809,0.51596655,38116.0,38115.0,0.7829733]
[1646632490660,0.51996655,38116.0,38115.0,0.7829733]
[1646632492060,0.51596655,38116.0,38115.0,0.7829733]
[1646632492560,0.51996655,38116.0,38115.0,0.7829733]
[1646632492762,0.46996655,38116.0,38115.0,1.0829733]
[1646632492960,0.36996655,38116.0,38115.0,1.1327733]
[1646632493160,0.36996655,38116.0,38115.0,1.0826733]
[1646632493761,0.36596655,38116.0,38115.0,1.0826733]
[1646632494017,0.46596655,38116.0,38115.0,1.0826733]
[1646632494618,0.46996655,38116.0,38115.0,1.0826733]
[1646632494815,0.51996655,38116.0,38115.0,1.0826733]
[1646632495817,0.51596655,38116.0,38115.0,1.0826733]
[1646632496019,0.83690954,38116.0,38115.0,1.0826733]
[1646632496617,0.84090954,38116.0,38115.0,1.0826733]
[1646632496818,0.84092926,38116.0,38115.0,1.0826733]
[1646632498551,0.83692926,38116.0,38115.0,1.0826733]
[1646632498752,0.84092926,38116.0,38115.0,1.0826733]
[1646632499451,0.84092926,38116.0,38115.0,0.7829733]
[1646632499851,0.83692926,38116.0,38115.0,0.7829733]
[1646632500754,0.84092926,38116.0,38115.0,0.7829733]
[1646632500955,0.51996655,38116.0,38115.0,0.7829733]
[1646632501361,0.84092926,38116.0,38115.0,0.7829733]
[1646632502005,0.83692926,38116.0,38115.0,0.7829733]
[1646632502809,0.51596655,38116.0,38115.0,1.08287188]
[1646632503013,0.51596655,38116.0,38115.0,1.47435788]
[1646632503014,0.36596655,38116.0,38115.0,1.47435788]
[1646632503210,0.36596655,38116.0,38115.0,1.62435788]
[1646632503410,0.36596655,38116.0,38115.0,1.32435788]
[1646632503709,0.36596655,38116.0,38115.0,1.40871788]
[1646632504508,0.29776655,38116.0,38115.0,1.40871788]
[1646632504711,0.29776655,38116.0,38115.0,1.32435788]
[1646632504909,0.29776655,38116.0,38115.0,1.17435788]
[1646632505108,0.29776655,38116.0,38115.0,1.62435788]
[1646632505353,0.29776655,38116.0,38115.0,1.47435788]
[1646632505552,0.29776655,38116.0,38115.0,1.62435788]
[1646632506755,0.29876655,38116.0,38115.0,1.62435788]
[1646632506953,0.29876655,38116.0,38115.0,1.32435788]
[1646632507152,0.34876655,38116.0,38115.0,1.32435788]
[1646632507953,0.34776655,38116.0,38115.0,1.32435788]
[1646632508753,0.34776655,38116.0,38115.0,1.27360368]
[1646632509210,0.34776655,38116.0,38115.0,1.37360368]
[1646632509806,0.01,38122.0,38119.0,0.12314194]
[1646632510207,0.01,38122.0,38119.0,0.31295874]
[1646632510406,0.01,38122.0,38121.0,0.22123359]
[1646632510609,0.016,38122.0,38119.0,0.31295874]
[1646632510812,0.1,38120.0,38119.0,0.12314194]
[1646632511408,0.1,38120.0,38119.0,0.51462794]
[1646632512008,0.1,38120.0,38119.0,0.42314194]
[1646632512609,0.1,38120.0,38119.0,0.12314194]
[1646632513759,0.1,38120.0,38119.0,0.36513652]
[1646632516161,0.1,38120.0,38119.0,0.12314194]
[1646632516810,0.102,38120.0,38119.0,0.12314194]
[1646632517011,0.102,38120.0,38119.0,0.12325702]
[1646632518010,0.1,38120.0,38119.0,0.12325702]
[1646632518709,0.104,38120.0,38119.0,0.12325702]
[1646632520111,0.1,38120.0,38119.0,0.12325702]
[1646632520355,0.065629,38121.0,38119.0,0.12325702]
[1646632520958,0.01,38122.0,38120.0,0.867876]
[1646632521158,0.01,38122.0,38121.0,0.32639]
[1646632521358,0.37450551,38130.0,38125.0,0.02639]
[1646632521558,0.47450551,38134.0,38125.0,0.867876]
[1646632521756,0.1,38134.0,38127.0,0.15]
[1646632521956,0.00019868,38133.0,38128.0,0.691486]
[1646632522162,0.00019868,38133.0,38126.0,0.3]
[1646632522358,0.10019868,38133.0,38126.0,0.1]
[1646632522557,0.1,38129.0,38126.0,0.1]
[1646632522765,0.165617,38129.0,38126.0,0.1]
[1646632523160,0.165617,38129.0,38127.0,0.391486]
[1646632523760,0.165617,38129.0,38128.0,0.391486]
[1646632524013,0.165617,38129.0,38126.0,0.391486]
[1646632524411,0.165617,38129.0,38125.0,0.4]
[1646632524817,0.166617,38129.0,38125.0,0.4]
[1646632525313,0.166617,38129.0,38125.0,0.1]